[Event "NJSK 2026 Meisjes A"]
[Site "Helmond, Netherlands"]
[Date "2026.05.01"]
[Round "7.1"]
[White "Westerhof, Fleur"]
[Black "Yildirim, Azra"]
[Result "1-0"]
[TimeControl "90min/40moves + 30min + 30sec/move"]
[WhiteTitle "-"]
[BlackTitle "-"]
[WhiteFideId "1080369"]
[BlackFideId "1085670"]
[WhiteElo "1968"]
[BlackElo "1560"]

1. e4 {[%clk 01:30:58]} {[%emt 00:00:02]} e5 {[%clk 01:30:56]} {[%emt
00:00:05]} 2. Nf3 {[%clk 01:31:21]} {[%emt 00:00:07]} Nc6 {[%clk 01:31:18]}
{[%emt 00:00:08]} 3. Bc4 {[%clk 01:31:44]} {[%emt 00:00:06]} Bc5 {[%clk
01:31:35]} {[%emt 00:00:14]} 4. c3 {[%clk 01:32:06]} {[%emt 00:00:08]} Nf6
{[%clk 01:31:44]} {[%emt 00:00:20]} 5. d4 {[%clk 01:32:26]} {[%emt 00:00:09]}
exd4 {[%clk 01:32:01]} {[%emt 00:00:14]} 6. e5 {[%clk 01:32:48]} {[%emt
00:00:08]} d5 {[%clk 01:22:14]} {[%emt 00:10:18]} 7. Bb5 {[%clk 01:32:14]}
{[%emt 00:01:04]} Ne4 {[%clk 01:19:30]} {[%emt 00:03:13]} 8. cxd4 {[%clk
01:32:23]} {[%emt 00:00:21]} Bb4+ {[%clk 01:18:29]} {[%emt 00:01:32]} 9. Bd2
{[%clk 01:32:45]} {[%emt 00:00:08]} Bxd2+ {[%clk 01:16:57]} {[%emt 00:02:02]}
10. Nbxd2 {[%clk 01:33:04]} {[%emt 00:00:10]} O-O {[%clk 01:16:33]} {[%emt
00:00:54]} 11. Bxc6 {[%clk 01:26:13]} {[%emt 00:07:21]} bxc6 {[%clk 01:15:57]}
{[%emt 00:01:06]} 12. Qc2 {[%clk 01:26:00]} {[%emt 00:00:43]} Nxd2 {[%clk
01:13:00]} {[%emt 00:03:28]} 13. Nxd2 {[%clk 01:24:54]} {[%emt 00:01:36]} Qg5
{[%clk 00:50:04]} {[%emt 00:23:26]} 14. g3 {[%clk 01:15:45]} {[%emt 00:09:38]}
Qg4 {[%clk 00:41:10]} {[%emt 00:09:24]} 15. Qc3 {[%clk 01:14:26]} {[%emt
00:01:49]} Ba6 {[%clk 00:36:26]} {[%emt 00:05:15]} 16. f3 {[%clk 01:11:00]}
{[%emt 00:03:56]} Qe6 {[%clk 00:31:21]} {[%emt 00:05:35]} 17. Rc1 {[%clk
01:06:16]} {[%emt 00:05:13]} Qh3 {[%clk 00:22:47]} {[%emt 00:09:04]} 18. Kf2
{[%clk 01:01:47]} {[%emt 00:05:00]} Rab8 {[%clk 00:18:10]} {[%emt 00:05:07]} 19.
b3 {[%clk 00:59:13]} {[%emt 00:03:04]} Rb6 {[%clk 00:16:35]} {[%emt 00:02:05]}
20. a4 {[%clk 00:52:52]} {[%emt 00:06:50]} Rfb8 {[%clk 00:12:54]} {[%emt
00:04:12]} 21. Qe3 {[%clk 00:48:35]} {[%emt 00:04:46]} Qe6 {[%clk 00:08:22]}
{[%emt 00:05:04]} 22. Kg2 {[%clk 00:45:02]} {[%emt 00:04:03]} Re8 {[%clk
00:05:07]} {[%emt 00:03:45]} 23. f4 {[%clk 00:41:28]} {[%emt 00:04:03]} Qg6
{[%clk 00:01:23]} {[%emt 00:04:14]} 24. h3 {[%clk 00:37:35]} {[%emt 00:04:23]}
Bd3 {[%clk 00:00:41]} {[%emt 00:01:12]} 25. Rc3 {[%clk 00:36:25]} {[%emt
00:01:40]} Bc2 {[%clk 00:00:37]} {[%emt 00:00:34]} 26. Kh2 {[%clk 00:34:11]}
{[%emt 00:02:43]} Reb8 {[%emt 00:01:41]} 27. Rc1 {[%clk 00:33:24]} Bf5 {[%clk
00:00:43]} {[%emt 00:00:31]} 28. g4 {[%clk 00:33:05]} {[%emt 00:00:49]} Bd7
{[%clk 00:00:40]} {[%emt 00:00:33]} 29. f5 {[%clk 00:32:44]} {[%emt 00:00:51]}
Qh6 {[%clk 00:00:32]} {[%emt 00:00:38]} 30. Qxh6 {[%clk 00:33:02]} {[%emt
00:00:12]} gxh6 {[%clk 00:01:00]} {[%emt 00:00:03]} 31. Kg3 {[%clk 00:32:46]}
{[%emt 00:00:45]} Kg7 {[%clk 00:00:41]} {[%emt 00:00:49]} 32. Kh4 {[%clk
00:31:39]} {[%emt 00:01:36]} Rb4 {[%clk 00:00:40]} {[%emt 00:00:33]} 33. Rd3
{[%clk 00:31:45]} {[%emt 00:00:23]} Re8 {[%clk 00:00:37]} {[%emt 00:00:34]} 34.
Kh5 {[%clk 00:30:41]} {[%emt 00:01:33]} Rg8 {[%clk 00:00:39]} {[%emt 00:00:29]}
35. Nf1 {[%clk 00:24:56]} {[%emt 00:06:15]} Rb6 {[%clk 00:00:45]} {[%emt
00:00:24]} 36. Ng3 {[%clk 00:24:15]} {[%emt 00:01:10]} Kh8 {[%clk 00:00:32]}
{[%emt 00:00:44]} 37. Kh4 {[%clk 00:24:13]} {[%emt 00:00:31]} Be8 {[%clk
00:00:33]} {[%emt 00:00:30]} 38. Nh5 {[%clk 00:24:22]} {[%emt 00:00:20]} Rb8
{[%clk 00:00:35]} {[%emt 00:00:29]} 39. Nf6 {[%clk 00:24:41]} {[%emt 00:00:10]}
Rg5 {[%clk 00:00:35]} {[%emt 00:00:29]} 40. Nxe8 {[%clk 00:25:00]} {[%emt
00:00:11]} Rxe8 {[%clk 00:01:00]} {[%emt 00:00:06]} 41. Rxc6 {[%clk 00:25:21]}
{[%emt 00:00:09]} Rc8 {[%clk 00:28:11]} {[%emt 00:03:20]} 42. Rc5 {[%clk
00:54:38]} {[%emt 00:01:12]} Rgg8 {[%clk 00:27:43]} {[%emt 00:00:57]} 43. Rxd5
{[%clk 00:54:49]} {[%emt 00:00:20]} Rgd8 {[%clk 00:27:55]} {[%emt 00:00:18]} 44.
Rxd8+ {[%clk 00:55:09]} {[%emt 00:00:10]} Rxd8 {[%clk 00:28:21]} {[%emt
00:00:04]} 45. Kh5 {[%clk 00:55:03]} {[%emt 00:00:36]} Kg8 {[%clk 00:25:55]}
{[%emt 00:02:56]} 46. Kxh6 {[%clk 00:55:19]} {[%emt 00:00:13]} Rb8 {[%clk
00:24:55]} {[%emt 00:01:31]} 47. Rc3 {[%clk 00:55:29]} {[%emt 00:00:20]} Rc8
{[%clk 00:24:21]} {[%emt 00:01:06]} 48. d5 {[%clk 00:55:49]} {[%emt 00:00:07]}
1-0

[Event "NJSK 2026 Meisjes A"]
[Site "Helmond, Netherlands"]
[Date "2026.05.01"]
[Round "7.2"]
[White "Hagen, Carlijn"]
[Black "Feng, Elysia"]
[Result "1/2-1/2"]
[TimeControl "90min/40moves + 30min + 30sec/move"]
[WhiteTitle "-"]
[BlackTitle "-"]
[WhiteFideId "1091190"]
[BlackFideId "1074334"]
[WhiteElo "1861"]
[BlackElo "1912"]

1. e4 {[%clk 01:30:57]} {[%emt 00:00:02]} e5 {[%clk 01:30:55]} {[%emt
00:00:05]} 2. f4 {[%clk 01:31:16]} {[%emt 00:00:11]} exf4 {[%clk 01:31:19]}
{[%emt 00:00:06]} 3. Nf3 {[%clk 01:31:40]} {[%emt 00:00:06]} Nf6 {[%clk
01:31:41]} {[%emt 00:00:08]} 4. Nc3 {[%clk 01:31:48]} {[%emt 00:00:22]} d5
{[%clk 01:31:04]} {[%emt 00:01:08]} 5. exd5 {[%clk 01:29:42]} {[%emt 00:02:35]}
Nxd5 {[%clk 01:30:57]} {[%emt 00:00:38]} 6. Nxd5 {[%clk 01:29:28]} {[%emt
00:00:43]} Qxd5 {[%clk 01:31:16]} {[%emt 00:00:11]} 7. Be2 {[%clk 01:28:22]}
{[%emt 00:01:36]} Be7 {[%clk 01:28:05]} {[%emt 00:03:42]} 8. O-O {[%clk
01:26:55]} {[%emt 00:01:55]} Nc6 {[%clk 01:27:11]} {[%emt 00:01:25]} 9. d4
{[%clk 01:26:10]} {[%emt 00:01:14]} g5 {[%clk 01:26:50]} {[%emt 00:00:51]} 10.
c4 {[%clk 01:19:32]} {[%emt 00:07:08]} Qd6 {[%clk 01:23:35]} {[%emt 00:03:46]}
11. a3 {[%clk 01:12:47]} {[%emt 00:07:15]} Bf5 {[%clk 01:17:39]} {[%emt
00:06:25]} 12. Kh1 {[%clk 01:04:17]} {[%emt 00:09:00]} O-O-O {[%clk 01:14:35]}
{[%emt 00:03:34]} 13. d5 {[%clk 01:03:39]} {[%emt 00:01:09]} Qf6 {[%clk
01:12:02]} {[%emt 00:03:03]} 14. Bd3 {[%clk 00:55:22]} {[%emt 00:08:47]} Bc5
{[%clk 01:05:05]} {[%emt 00:07:27]} 15. Bxf5+ {[%clk 00:51:03]} {[%emt
00:04:48]} Qxf5 {[%clk 01:05:23]} {[%emt 00:00:12]} 16. b4 {[%clk 00:50:58]}
{[%emt 00:00:36]} Be3 {[%clk 00:58:50]} {[%emt 00:07:03]} 17. Bxe3 {[%clk
00:45:51]} {[%emt 00:05:36]} fxe3 {[%clk 00:59:13]} {[%emt 00:00:08]} 18. Nd4
{[%clk 00:45:32]} {[%emt 00:00:48]} Qe4 {[%clk 00:56:32]} {[%emt 00:03:11]} 19.
dxc6 {[%clk 00:33:24]} {[%emt 00:12:38]} Rxd4 {[%clk 00:56:01]} {[%emt
00:01:01]} 20. cxb7+ {[%clk 00:33:33]} {[%emt 00:00:21]} Kxb7 {[%clk 00:51:59]}
{[%emt 00:04:32]} 21. Qa4 {[%clk 00:32:32]} {[%emt 00:01:31]} e2 {[%clk
00:46:22]} {[%emt 00:06:08]} 22. Rfe1 {[%clk 00:30:28]} {[%emt 00:02:33]} Rxc4
{[%clk 00:44:41]} {[%emt 00:02:12]} 23. Qb5+ {[%clk 00:30:01]} {[%emt
00:00:56]} Ka8 {[%clk 00:45:01]} {[%emt 00:00:11]} 24. Qxg5 {[%clk 00:29:35]}
{[%emt 00:00:55]} Re8 {[%clk 00:43:01]} {[%emt 00:02:30]} 25. h3 {[%clk
00:23:27]} {[%emt 00:06:37]} Rd4 {[%clk 00:34:45]} {[%emt 00:08:48]} 26. Qh5
{[%clk 00:18:51]} {[%emt 00:05:06]} Rd3 {[%clk 00:27:33]} {[%emt 00:07:42]} 27.
Ra2 {[%clk 00:14:45]} {[%emt 00:04:36]} Re3 {[%clk 00:26:05]} {[%emt 00:01:58]}
28. Rd2 {[%clk 00:12:30]} {[%emt 00:02:44]} c6 {[%clk 00:18:25]} {[%emt
00:08:11]} 29. Kg1 {[%clk 00:09:22]} {[%emt 00:03:37]} 1/2-1/2

[Event "NJSK 2026 Meisjes A"]
[Site "Helmond, Netherlands"]
[Date "2026.05.01"]
[Round "7.4"]
[White "Gergin, Isafara"]
[Black "Damen, Josephine"]
[Result "1-0"]
[TimeControl "90min/40moves + 30min + 30sec/move"]
[WhiteTitle "-"]
[BlackTitle "-"]
[WhiteFideId "1082167"]
[BlackFideId "1074369"]
[WhiteElo "1915"]
[BlackElo "1982"]

1. e4 {[%clk 01:30:59]} e5 {[%clk 01:30:55]} {[%emt 00:00:04]} 2. Nf3 {[%clk
01:31:25]} {[%emt 00:00:04]} Nc6 {[%clk 01:31:22]} {[%emt 00:00:04]} 3. Nc3
{[%clk 01:31:50]} {[%emt 00:00:05]} Nf6 {[%clk 01:31:20]} {[%emt 00:00:32]} 4.
d4 {[%clk 01:32:13]} {[%emt 00:00:06]} exd4 {[%clk 01:31:47]} {[%emt 00:00:04]}
5. Nxd4 {[%clk 01:32:37]} {[%emt 00:00:06]} Bb4 {[%clk 01:31:44]} {[%emt
00:00:32]} 6. Nxc6 {[%clk 01:32:55]} {[%emt 00:00:12]} bxc6 {[%clk 01:21:35]}
{[%emt 00:10:39]} 7. Bd3 {[%clk 01:33:05]} {[%emt 00:00:20]} O-O {[%clk
01:21:27]} {[%emt 00:00:38]} 8. O-O {[%clk 01:33:21]} {[%emt 00:00:14]} d5
{[%clk 01:08:19]} {[%emt 00:13:37]} 9. exd5 {[%clk 01:33:25]} {[%emt 00:00:27]}
cxd5 {[%clk 01:08:27]} {[%emt 00:00:22]} 10. Bg5 {[%clk 01:32:46]} {[%emt
00:01:09]} c6 {[%clk 01:02:59]} {[%emt 00:05:57]} 11. Qf3 {[%clk 01:31:16]}
{[%emt 00:02:00]} Be7 {[%clk 00:58:38]} {[%emt 00:04:51]} 12. h3 {[%clk
01:30:08]} {[%emt 00:01:38]} Be6 {[%clk 00:53:47]} {[%emt 00:05:21]} 13. Rfe1
{[%clk 01:19:13]} {[%emt 00:11:25]} Rb8 {[%clk 00:48:50]} {[%emt 00:05:28]} 14.
Rab1 {[%clk 01:15:12]} {[%emt 00:04:31]} Rb7 {[%clk 00:42:27]} {[%emt
00:06:53]} 15. Ne2 {[%clk 01:09:56]} {[%emt 00:05:46]} h6 {[%clk 00:32:39]}
{[%emt 00:10:18]} 16. Bf4 {[%clk 01:07:28]} {[%emt 00:02:57]} Qa5 {[%clk
00:29:52]} {[%emt 00:03:18]} 17. Nd4 {[%clk 00:59:37]} {[%emt 00:08:20]} c5
{[%clk 00:24:00]} {[%emt 00:06:23]} 18. Nxe6 {[%clk 00:58:49]} {[%emt
00:01:18]} fxe6 {[%clk 00:24:27]} {[%emt 00:00:03]} 19. Rxe6 {[%clk 00:53:22]}
Qxa2 {[%clk 00:22:12]} {[%emt 00:08:43]} 20. Rbe1 {[%clk 00:52:32]} {[%emt
00:01:19]} Bd8 {[%clk 00:21:44]} {[%emt 00:00:58]} 21. Bd6 {[%clk 00:51:47]}
{[%emt 00:01:14]} Rbf7 {[%clk 00:20:55]} {[%emt 00:01:20]} 22. Bg6 {[%clk
00:49:53]} {[%emt 00:02:23]} Ne4 {[%clk 00:21:03]} {[%emt 00:00:22]} 23. Bxf7+
{[%clk 00:50:10]} {[%emt 00:00:14]} Rxf7 {[%clk 00:21:19]} {[%emt 00:00:14]} 24.
Re8+ {[%clk 00:50:31]} {[%emt 00:00:09]} 1-0

[ePGN "0.1;DGT LiveChess/2.2.10"]

[Event "NJSK 2026 Jeugd B"]
[Site "Helmond, Netherlands"]
[Date "2026.04.25"]
[Round "1.1"]
[White "Grooten, Tommy"]
[Black "Winter, Sven"]
[Result "0-1"]
[TimeControl "90min/40moves + 30min + 30sec/move"]
[WhiteTitle "-"]
[BlackTitle "-"]
[WhiteFideId "1068806"]
[BlackFideId "1092375"]
[WhiteElo "2347"]
[BlackElo "2013"]

1. Nf3 {[%clk 01:30:56]} {[%emt 00:00:03]} Nf6 {[%clk 01:30:43]} {[%emt
00:00:17]} 2. c4 {[%clk 01:31:22]} {[%emt 00:00:04]} b6 {[%clk 01:30:31]}
{[%emt 00:00:44]} 3. g3 {[%clk 01:31:18]} {[%emt 00:00:32]} Bb7 {[%clk
01:30:47]} {[%emt 00:00:14]} 4. Bg2 {[%clk 01:31:44]} {[%emt 00:00:04]} e6
{[%clk 01:31:00]} {[%emt 00:00:17]} 5. O-O {[%clk 01:32:05]} {[%emt 00:00:09]}
Be7 {[%clk 01:31:17]} {[%emt 00:00:13]} 6. d4 {[%clk 01:32:24]} {[%emt
00:00:11]} O-O {[%clk 01:31:07]} {[%emt 00:00:40]} 7. b3 {[%clk 01:16:53]}
{[%emt 00:16:02]} d6 {[%clk 01:16:37]} {[%emt 00:15:00]} 8. Bb2 {[%clk
01:16:14]} {[%emt 00:01:08]} Nbd7 {[%clk 01:16:13]} {[%emt 00:00:55]} 9. Qc2
{[%clk 01:14:59]} {[%emt 00:01:45]} c5 {[%clk 01:09:30]} {[%emt 00:07:13]} 10.
dxc5 {[%clk 01:11:53]} {[%emt 00:03:35]} Nxc5 {[%clk 01:01:49]} {[%emt
00:08:11]} 11. Nc3 {[%clk 01:08:12]} {[%emt 00:04:11]} Rc8 {[%clk 00:58:41]}
{[%emt 00:03:38]} 12. Rad1 {[%clk 01:04:47]} {[%emt 00:03:56]} a6 {[%clk
00:55:08]} {[%emt 00:04:03]} 13. Rfe1 {[%clk 01:03:33]} {[%emt 00:01:43]} b5
{[%clk 00:50:52]} {[%emt 00:04:47]} 14. b4 {[%clk 00:40:47]} {[%emt 00:23:15]}
Nce4 {[%clk 00:36:50]} {[%emt 00:14:33]} 15. Rd4 {[%clk 00:22:57]} {[%emt
00:18:20]} Nxc3 {[%clk 00:25:45]} {[%emt 00:11:35]} 16. Qxc3 {[%clk 00:22:40]}
{[%emt 00:00:47]} bxc4 {[%clk 00:23:02]} {[%emt 00:03:13]} 17. Rxc4 {[%clk
00:22:49]} {[%emt 00:00:21]} Qb6 {[%clk 00:22:13]} {[%emt 00:01:19]} 18. a3
{[%clk 00:15:00]} {[%emt 00:08:20]} e5 {[%clk 00:19:12]} {[%emt 00:03:30]} 19.
Nd2 {[%clk 00:11:57]} {[%emt 00:03:33]} Nd7 {[%clk 00:10:34]} {[%emt 00:09:09]}
20. Rc1 {[%clk 00:11:01]} {[%emt 00:01:25]} Rcd8 {[%clk 00:08:39]} {[%emt
00:02:26]} 21. Bxb7 {[%clk 00:09:29]} {[%emt 00:02:01]} Qxb7 {[%clk 00:08:40]}
{[%emt 00:00:29]} 22. Rc7 {[%clk 00:09:52]} {[%emt 00:00:06]} Qd5 {[%clk
00:07:52]} {[%emt 00:01:19]} 23. Nf3 {[%clk 00:04:36]} {[%emt 00:05:46]} Rfe8
{[%clk 00:06:28]} {[%emt 00:01:54]} 24. Qc6 {[%clk 00:03:21]} {[%emt 00:01:44]}
Qb3 {[%clk 00:04:56]} {[%emt 00:02:03]} 25. Rc2 {[%clk 00:02:49]} {[%emt
00:01:02]} Nc5 {[%clk 00:04:25]} {[%emt 00:01:01]} 26. Rd2 {[%clk 00:02:24]}
{[%emt 00:00:55]} Ne6 {[%clk 00:03:14]} {[%emt 00:01:41]} 27. Qc4 {[%clk
00:00:42]} {[%emt 00:02:11]} Qxc4 {[%clk 00:01:11]} {[%emt 00:02:34]} 28. Rxc4
{[%clk 00:01:11]} Ra8 {[%clk 00:01:15]} {[%emt 00:00:27]} 29. Rc6 {[%clk
00:00:33]} {[%emt 00:01:08]} a5 {[%clk 00:01:02]} {[%emt 00:00:43]} 30. b5
{[%clk 00:00:37]} {[%emt 00:00:26]} Nc5 {[%clk 00:00:44]} {[%emt 00:00:48]} 31.
Rd5 {[%clk 00:00:39]} {[%emt 00:00:29]} Rec8 {[%clk 00:00:37]} {[%emt
00:00:37]} 32. Bc3 {[%clk 00:00:38]} {[%emt 00:00:31]} Rxc6 {[%clk 00:00:32]}
{[%emt 00:00:34]} 33. bxc6 {[%clk 00:01:07]} {[%emt 00:00:01]} f6 {[%clk
00:00:33]} {[%emt 00:00:30]} 34. Nd2 {[%clk 00:00:57]} {[%emt 00:00:39]} Kf7
{[%clk 00:00:33]} {[%emt 00:00:30]} 35. Nc4 {[%clk 00:01:14]} {[%emt 00:00:12]}
Ke6 {[%clk 00:00:33]} {[%emt 00:00:31]} 36. Nb6 {[%clk 00:00:36]} {[%emt
00:01:09]} Ra7 {[%clk 00:00:35]} {[%emt 00:00:28]} 37. Rd1 {[%clk 00:00:34]}
{[%emt 00:00:32]} Bd8 {[%clk 00:00:35]} {[%emt 00:00:30]} 38. Nd5 {[%clk
00:00:37]} {[%emt 00:00:27]} Na4 {[%clk 00:00:41]} {[%emt 00:00:24]} 39. Rb1
{[%clk 00:00:32]} {[%emt 00:00:34]} Kxd5 {[%clk 00:00:54]} {[%emt 00:00:16]} 40.
Rb7 {[%clk 00:00:46]} {[%emt 00:00:17]} Rxb7 {[%clk 00:00:58]} {[%emt
00:00:33]} 0-1

[Event "NJSK 2026 Jeugd B"]
[Site "Helmond, Netherlands"]
[Date "2026.04.25"]
[Round "1.2"]
[White "Wierenga, Luuk"]
[Black "Kurt, Sascha"]
[Result "0-1"]
[TimeControl "90min/40moves + 30min + 30sec/move"]
[WhiteTitle "-"]
[BlackTitle "-"]
[WhiteFideId "1094874"]
[BlackFideId "1082647"]
[WhiteElo "1977"]
[BlackElo "2280"]

1. Nf3 {[%clk 01:30:51]} {[%emt 00:00:08]} Nf6 {[%clk 01:30:53]} {[%emt
00:00:07]} 2. c4 {[%clk 01:31:10]} {[%emt 00:00:11]} g6 {[%clk 01:31:14]}
{[%emt 00:00:09]} 3. g3 {[%clk 01:31:21]} {[%emt 00:00:19]} Bg7 {[%clk
01:31:40]} {[%emt 00:00:05]} 4. Bg2 {[%clk 01:31:45]} {[%emt 00:00:05]} O-O
{[%clk 01:31:51]} {[%emt 00:00:19]} 5. O-O {[%clk 01:32:07]} {[%emt 00:00:08]}
d6 {[%clk 01:32:16]} {[%emt 00:00:06]} 6. Nc3 {[%clk 01:31:37]} {[%emt
00:01:00]} e5 {[%clk 01:32:24]} {[%emt 00:00:22]} 7. d4 {[%clk 01:31:31]}
{[%emt 00:00:36]} Nbd7 {[%clk 01:31:50]} {[%emt 00:01:03]} 8. e4 {[%clk
01:31:14]} {[%emt 00:00:47]} Re8 {[%clk 01:31:57]} {[%emt 00:00:20]} 9. Re1
{[%clk 01:29:11]} {[%emt 00:02:36]} b6 {[%clk 01:31:57]} {[%emt 00:00:31]} 10.
d5 {[%clk 01:20:25]} {[%emt 00:09:16]} a5 {[%clk 01:31:59]} {[%emt 00:00:25]}
11. b3 {[%clk 01:17:41]} {[%emt 00:03:17]} Nc5 {[%clk 01:30:20]} {[%emt
00:02:08]} 12. Bb2 {[%clk 01:14:34]} {[%emt 00:03:38]} Bd7 {[%clk 01:28:00]}
{[%emt 00:02:50]} 13. Qc2 {[%clk 01:11:19]} {[%emt 00:03:45]} Nh5 {[%clk
01:26:45]} {[%emt 00:01:44]} 14. Nd2 {[%clk 01:06:35]} {[%emt 00:05:14]} f5
{[%clk 01:24:47]} {[%emt 00:02:28]} 15. f3 {[%clk 01:06:27]} {[%emt 00:00:39]}
Bh6 {[%clk 01:18:29]} {[%emt 00:06:47]} 16. Ne2 {[%clk 00:49:23]} {[%emt
00:17:34]} Nf6 {[%clk 01:08:37]} {[%emt 00:10:23]} 17. f4 {[%clk 00:42:47]}
{[%emt 00:07:05]} Ng4 {[%clk 00:41:47]} {[%emt 00:27:21]} 18. Qc3 {[%clk
00:39:26]} {[%emt 00:03:51]} Bg7 {[%clk 00:40:47]} {[%emt 00:01:29]} 19. h3
{[%clk 00:33:53]} {[%emt 00:06:03]} Nf6 {[%clk 00:39:32]} {[%emt 00:01:45]} 20.
exf5 {[%clk 00:33:03]} {[%emt 00:01:21]} Bxf5 {[%clk 00:37:43]} {[%emt
00:02:18]} 21. fxe5 {[%clk 00:28:27]} {[%emt 00:05:06]} Rxe5 {[%clk 00:32:07]}
{[%emt 00:06:05]} 22. Nf4 {[%clk 00:25:33]} {[%emt 00:03:25]} Nh5 {[%clk
00:24:05]} {[%emt 00:08:33]} 23. Rxe5 {[%clk 00:08:39]} {[%emt 00:17:23]} Bxe5
{[%clk 00:24:18]} {[%emt 00:00:13]} 24. Qc1 {[%clk 00:08:38]} {[%emt 00:00:35]}
Nxf4 {[%clk 00:24:20]} {[%emt 00:00:28]} 25. gxf4 {[%clk 00:08:59]} {[%emt
00:00:08]} Nd3 {[%clk 00:24:31]} {[%emt 00:00:20]} 26. fxe5 {[%clk 00:09:09]}
{[%emt 00:00:20]} Nxc1 {[%clk 00:24:58]} {[%emt 00:00:03]} 27. Rxc1 {[%clk
00:09:30]} {[%emt 00:00:09]} dxe5 {[%clk 00:25:03]} {[%emt 00:00:26]} 28. Bxe5
{[%clk 00:09:20]} {[%emt 00:00:39]} Qg5 {[%clk 00:24:48]} {[%emt 00:00:45]} 0-1